bitfinex/quotes_ETHUSD_20240827
["timestamp","ask_amount","ask_price","bid_price","bid_amount"]
[1724790755377,6.8561,2593.3,2592.8,0.55]
[1724790755907,0.26560826,2593.2,2592.8,0.55]
[1724790756276,6.8561,2593.3,2592.8,0.55]
[1724790756490,0.26560826,2593.1,2592.8,0.55]
[1724790756700,6.8561,2593.3,2592.8,1.59209071]
[1724790757022,0.26560826,2593.0,2592.8,1.59209071]
[1724790757159,6.8561,2593.3,2592.8,0.55]
[1724790757361,0.26560826,2593.2,2592.8,0.55]
[1724790757606,6.8561,2593.3,2592.8,0.55]
[1724790757896,0.26560826,2593.1,2592.8,0.55]
[1724790758104,6.8561,2593.3,2592.8,0.55]
[1724790758403,3.85634,2593.2,2592.8,0.55]
[1724790758607,3.0,2593.1,2592.8,0.55]
[1724790759109,6.85624,2593.2,2592.8,0.55]
[1724790759262,0.26581065,2593.0,2592.8,0.55]
[1724790759605,0.26581065,2592.9,2592.8,0.55]
[1724790760104,6.85624,2593.2,2592.8,0.55]
[1724790760272,0.26581065,2592.9,2592.8,0.55]
[1724790760807,6.85624,2593.2,2592.8,0.55]
[1724790760994,0.26581065,2592.9,2592.8,0.55]
[1724790761194,6.85624,2593.2,2592.8,0.55]
[1724790761422,0.26581065,2592.9,2592.8,0.55]
[1724790761713,6.85624,2593.2,2592.8,0.55]
[1724790761916,0.26581065,2592.9,2592.8,0.55]
[1724790762070,6.85624,2593.2,2592.8,0.55]
[1724790762270,0.26578426,2592.9,2592.8,0.55]
[1724790762512,6.85624,2593.2,2592.8,0.55]
[1724790762815,3.0,2593.2,2592.8,2.9107]
[1724790762969,0.26578426,2593.1,2592.9,0.29878329]
[1724790763281,3.0,2593.3,2593.0,0.55]
[1724790763480,6.85596,2593.4,2593.0,0.55]
[1724790765719,6.85596,2593.4,2593.0,0.54894684]
[1724790767733,6.85596,2593.4,2592.8,2.3607]
[1724790768031,6.85596,2593.4,2592.9,0.55]
[1724790773532,0.26586342,2593.3,2592.9,0.55]
[1724790773861,0.26586342,2593.3,2593.0,2.36762787]
[1724790774069,0.26586342,2593.3,2593.2,2.2905]
[1724790774233,0.1238438,2593.6,2593.2,2.91761637]
[1724790774453,0.1238438,2593.6,2593.3,0.51429984]
[1724790774663,0.1238438,2593.6,2593.3,1.06429984]
[1724790782464,0.1238438,2593.6,2593.4,2.2795]
[1724790782667,0.1238438,2593.6,2593.5,0.55]
[1724790788518,0.39013831,2593.6,2593.5,0.55]
[1724790788701,0.1238438,2593.6,2593.5,0.55]
[1724790788887,0.39013831,2593.6,2593.3,0.55]
[1724790789076,0.1238438,2593.6,2593.3,0.55]
[1724790789276,0.26629451,2593.5,2593.3,0.55]
[1724790797169,0.26629451,2593.5,2593.4,4.17469834]
[1724790797319,0.26629451,2593.5,2593.4,12.43656974]
[1724790797528,0.03328681,2593.5,2593.4,16.29250974]
[1724790797768,2.0,2594.9,2594.1,2.4222]
[1724790797769,2.4092,2594.8,2594.1,2.4222]
[1724790798063,0.24944702,2594.7,2594.2,2.22538207]
[1724790798270,0.24944702,2594.7,2594.2,0.55]
[1724790798475,2.4092,2594.8,2594.2,0.55]
[1724790799062,0.24944702,2594.7,2594.2,0.55]
[1724790800719,3.24944702,2594.7,2594.2,0.55]
[1724790804870,0.24944702,2594.7,2594.3,2.48648317]
[1724790805070,0.24944702,2594.7,2594.4,2.22538207]
[1724790805376,9.70671,2595.2,2594.5,0.47118652]
[1724790805581,9.70671,2595.2,2594.4,2.22538207]
[1724790805582,0.25006477,2594.6,2594.4,2.22538207]
[1724790805914,0.25006477,2594.5,2594.4,2.22538207]
[1724790806608,3.0,2595.1,2594.4,2.22538207]
[1724790807098,0.25006477,2595.0,2594.4,2.22538207]
[1724790807271,0.25006477,2595.0,2594.5,0.47118652]
[1724790807452,0.25006477,2595.0,2594.6,0.55]
[1724790808083,5.0,2595.2,2594.6,0.55]
[1724790808292,0.25006477,2594.9,2594.6,0.55]
[1724790808453,5.0,2595.2,2594.6,0.81965686]
[1724790808653,0.25006477,2594.8,2594.6,0.81965686]
[1724790808891,8.85328,2595.2,2594.6,0.81965686]
[1724790809093,0.25006477,2594.7,2594.6,0.81965686]
[1724790809307,5.0,2595.2,2594.6,0.81965686]
[1724790809614,2.4117,2595.3,2594.7,1.75245925]
[1724790809911,0.25006477,2595.2,2594.9,1.67538207]
[1724790810199,6.31253,2595.7,2594.9,1.67538207]
[1724790810503,6.31253,2595.7,2595.0,1.07625785]
[1724790810504,0.2513972,2595.6,2595.0,1.07625785]
[1724790811315,3.2513972,2595.6,2595.0,1.07625785]
[1724790811956,3.2513972,2595.6,2595.1,0.07706525]
[1724790812155,0.2513972,2595.6,2595.2,3.0072]
[1724790812357,5.46,2595.9,2595.2,0.55]
[1724790812550,5.46,2595.9,2595.1,0.55]
[1724790812756,0.25172352,2595.8,2595.1,0.55]
[1724790812965,0.25172352,2595.8,2595.1,0.62705987]
[1724790814601,0.25172352,2595.8,2595.2,2.53425986]
[1724790814785,0.25172352,2595.8,2595.3,0.6270539]
[1724790814958,0.25172352,2595.8,2595.3,1.5433565]
[1724790815803,0.25172352,2595.8,2595.3,1.4663026]
[1724790815953,0.25172352,2595.8,2595.3,0.55]
[1724790817235,0.25172352,2595.8,2594.8,7.77293161]
[1724790817236,3.85297,2595.4,2594.8,7.77293161]
[1724790817595,0.25206736,2595.3,2594.8,7.77293161]
[1724790817934,0.25206736,2595.3,2594.8,0.50293161]
[1724790818119,0.25206736,2595.3,2594.7,2.4572]
[1724790818528,3.85297,2595.4,2594.8,0.55]
[1724790818889,2.46,2595.3,2594.8,0.55]
[1724790819992,0.25206736,2595.2,2594.8,0.55]
[1724790820806,4.10540736,2595.2,2594.5,7.27]
[1724790821131,7.10540736,2595.2,2594.5,8.54997021]
[1724790821707,3.25206736,2595.2,2594.5,8.54997021]
[1724790822029,3.25206736,2595.2,2594.6,0.55]
[1724790823395,3.25206736,2595.2,2594.6,1.70571702]
[1724790824533,7.10542736,2595.2,2594.6,1.70571702]
[1724790824752,7.10542736,2595.2,2594.6,0.55]
[1724790824956,3.85345,2595.1,2594.6,0.55]
[1724790825127,3.0,2595.0,2594.6,0.55]
[1724790825541,0.25217327,2594.9,2594.6,0.55]
[1724790827255,6.85343,2595.1,2594.6,0.55]
[1724790827460,0.25217327,2594.8,2594.6,0.55]
[1724790827761,2.4074,2595.0,2594.6,1.57772]
[1724790827916,0.25217327,2594.7,2594.6,1.57772]
[1724790828562,2.4074,2594.9,2594.1,7.27]
[1724790828865,5.0,2595.1,2593.9,12.42]
[1724790828866,6.2616,2594.6,2593.9,12.42]
[1724790829068,6.2616,2594.6,2593.8,7.27]
[1724790829358,2.4074,2594.4,2593.8,7.27]
[1724790829915,0.25190872,2594.3,2593.8,7.27]
[1724790830123,3.25190872,2594.3,2593.8,7.27]
[1724790831333,3.25190872,2594.3,2593.9,0.55]
[1724790838657,7.10651872,2594.3,2593.9,0.55]
[1724790838996,3.85511,2594.0,2593.8,7.27]
[1724790839170,3.72714015,2594.3,2593.2,2.4713]
[1724790839171,3.85551,2593.7,2593.2,7.27]
[1724790839358,9.15079,2593.9,2593.0,2.4713]
[1724790839359,6.40141968,2593.9,2593.0,2.4713]
[1724790839697,6.40141968,2593.9,2593.1,2.21613]
[1724790839698,0.25062968,2593.8,2593.1,2.21613]
[1724790839926,3.25062968,2593.8,2593.1,2.21613]
[1724790841531,3.25062968,2593.8,2593.3,3.85607]
[1724790841738,0.25062968,2593.8,2593.4,3.46961853]
[1724790842028,0.25062968,2593.8,2593.5,0.55]
[1724790842233,3.0,2594.2,2593.5,0.55]
[1724790842689,0.25062968,2594.1,2593.5,0.55]
[1724790842889,0.25062968,2594.1,2593.6,0.34696185]
[1724790843140,0.25062968,2594.1,2593.7,0.55]
[1724790849550,4.10552968,2594.1,2593.7,0.55]
[1724790849872,3.0,2594.0,2593.7,0.55]
[1724790850337,0.25046205,2593.9,2593.7,0.55]
[1724790851369,6.56556205,2593.9,2593.7,0.55]
[1724790851687,3.85534,2593.8,2593.4,7.27]
[1724790851966,2.4598,2593.5,2593.4,7.27]
[1724790852151,9.31559,2593.5,2593.4,7.27]
[1724790852470,9.56584026,2593.5,2593.4,7.27]
[1724790855264,9.56584026,2593.5,2592.9,7.27]
[1724790855472,9.56584026,2593.5,2593.0,1.51347]
[1724790856498,3.85603,2593.4,2593.0,0.55]
[1724790856868,0.24995016,2593.3,2593.0,0.55]
[1724790861428,0.24995016,2593.3,2592.9,0.55]
[1724790870740,0.24995016,2593.3,2593.0,5.0]
[1724790870942,0.24995016,2593.3,2593.1,0.55]
[1724790877001,0.24995016,2593.3,2593.1,2.9263]
[1724790877201,3.0,2593.7,2593.1,2.9263]
[1724790877456,0.24911153,2593.6,2593.1,2.9263]
[1724790877752,9.22707,2593.8,2593.1,4.183738]
[1724790877753,3.0,2593.7,2593.1,4.183738]
[1724790877959,0.24911153,2593.5,2593.1,4.183738]
[1724790878570,3.0,2593.7,2593.1,4.183738]
[1724790878772,0.24911153,2593.3,2593.2,0.9975208]
[1724790878930,3.0,2593.7,2593.2,1.5475208]
[1724790879128,6.85557,2593.7,2593.3,0.55]
[1724790879456,6.22734,2593.6,2593.3,0.55]
[1724790879768,3.0,2593.5,2593.1,0.55]
[1724790891326,2.3717,2593.6,2593.1,0.55]
[1724790891327,5.3717,2593.6,2593.1,0.55]
[1724790891536,5.3717,2593.6,2593.2,0.555]
[1724790891695,5.3717,2593.6,2593.3,0.55]
[1724790893638,0.24910273,2593.5,2593.3,0.55]
[1724790893791,3.24910273,2593.5,2593.3,0.55]
[1724790897041,3.24910273,2593.5,2593.1,0.55]
[1724790898318,6.29687,2593.3,2593.0,5.0]
[1724790898701,0.24911156,2593.2,2593.0,5.0]
[1724790898904,6.29687,2593.3,2593.0,5.0]
[1724790899197,0.24911156,2593.2,2593.0,5.0]
[1724790899419,2.4407,2593.3,2593.0,5.0]
[1724790899733,2.4407,2593.3,2593.1,0.55]
[1724790902246,6.29681,2593.3,2593.1,0.55]
[1724790902400,6.29681,2593.3,2593.0,5.0]
[1724790902401,6.85638,2593.2,2593.0,5.0]
[1724790902602,3.0,2593.2,2593.0,5.0]
[1724790904415,5.4407,2593.3,2593.0,5.0]
[1724790908258,5.4407,2593.3,2593.1,0.55]
[1724790908259,3.0,2593.3,2593.1,0.55]
[1724790908553,3.0,2593.6,2593.2,0.555]
[1724790908764,6.24315,2593.8,2593.3,0.55]
[1724790908959,3.0,2593.7,2593.3,0.55]
[1724790909328,6.85549,2593.7,2593.2,0.55]
[1724790913463,3.85565,2593.6,2593.2,0.55]
[1724790913647,3.0,2593.5,2593.2,0.55]
[1724790913837,6.85549,2593.7,2593.2,0.55]
[1724790915176,3.0,2593.7,2593.2,0.55]
[1724790915327,3.85502,2594.1,2593.4,2.4909]
[1724790915668,2.0,2594.3,2593.5,0.97430181]
[1724790915669,3.85519,2594.0,2593.5,0.97430181]
[1724790915838,3.85525,2593.9,2593.5,0.55]
[1724790916838,3.0,2593.8,2593.5,0.55]
[1724790917046,6.13094,2593.6,2593.0,7.4909]
[1724790917262,7.71201,2593.4,2593.0,7.4909]
[1724790917472,3.85626,2593.2,2593.0,5.0]
[1724790917745,6.13156,2593.2,2593.0,5.0]
[1724790920489,2.2753,2593.2,2593.0,5.0]
[1724790923363,0.24894377,2593.1,2593.0,5.0]
[1724790923576,0.24894377,2593.1,2593.0,5.55]
[1724790927308,3.24894377,2593.1,2593.0,5.55]
[1724790929292,10.04335915,2593.1,2593.0,5.0]
[1724790929599,16.74768999,2593.1,2593.0,5.0]
[1724790932295,16.81942198,2593.1,2593.0,5.0]
[1724790932729,16.41547114,2593.1,2593.0,5.0]
[1724790933073,16.81942912,2593.1,2593.0,5.0]
[1724790933596,16.41547114,2593.1,2593.0,5.0]
[1724790935329,20.27185114,2593.1,2593.0,5.0]
[1724790935695,20.67583217,2593.1,2593.0,5.0]
[1724790938971,24.53221217,2593.1,2593.0,5.0]
[1724790939581,24.53221217,2593.1,2592.0,2.4462]
[1724790939582,2.0,2592.6,2592.0,2.4462]
[1724790939875,2.0,2592.6,2591.7,7.27]
[1724790939876,6.17581,2592.3,2591.7,2.4462]
[1724790940039,3.85775,2592.2,2591.7,2.4462]
[1724790940230,3.0,2592.1,2591.7,2.4462]
[1724790940433,3.31964224,2592.1,2591.7,2.4462]
[1724790940661,3.31964224,2592.1,2591.7,2.69082]
[1724790940974,3.85807,2592.0,2591.7,2.69082]
[1724790941136,3.0,2591.9,2591.7,2.4462]
[1724790941366,3.0,2591.9,2591.5,2.4462]
[1724790941651,0.31964224,2591.8,2591.5,2.4462]
[1724790942853,0.31964224,2591.8,2591.6,0.55]
[1724790944479,3.0,2592.0,2591.6,0.55]
[1724790944651,0.31964224,2591.7,2591.6,0.55]
[1724790944978,0.31964224,2591.7,2591.6,0.98151104]
[1724790945188,3.0,2592.0,2591.6,0.98151104]
[1724790945389,0.31964224,2591.7,2591.6,0.98151104]
[1724790945687,3.0,2592.0,2591.6,0.98151104]
[1724790945841,0.31964224,2591.7,2591.6,0.98151104]
[1724790946041,3.0,2592.0,2591.6,0.98151104]
[1724790946269,0.31964224,2591.7,2591.6,0.98151104]
[1724790946437,3.0,2592.0,2591.6,0.98151104]
[1724790946637,0.31964224,2591.7,2591.6,0.98151104]
[1724790946867,3.0,2592.0,2591.6,0.98151104]
[1724790947054,0.31964224,2591.7,2591.6,0.98151104]
[1724790947252,3.0,2592.0,2591.6,0.98151104]
[1724790947478,0.31964224,2591.7,2591.6,0.98151104]
[1724790947647,3.0,2592.0,2591.6,0.98151104]
[1724790947841,0.31964224,2591.7,2591.6,0.98151104]
[1724790948047,3.0,2592.0,2591.6,0.98151104]
[1724790948247,0.31964224,2591.7,2591.6,0.98151104]
[1724790948448,3.0,2592.0,2591.6,0.98151104]
[1724790948648,0.31964224,2591.7,2591.6,0.55]
[1724790949302,3.0,2592.0,2591.6,0.55]
[1724790949883,0.3192269,2591.9,2591.6,0.55]
[1724790962074,3.0,2592.1,2591.6,0.55]
[1724790962287,0.31916504,2591.8,2591.6,0.55]
[1724790962470,6.8579,2592.1,2591.6,1.57662]
[1724790962670,0.31916504,2591.7,2591.6,0.55]
[1724790962870,6.8579,2592.1,2591.6,0.55]
[1724790963070,0.31916504,2591.7,2591.6,0.55]
[1724790963271,6.8579,2592.1,2591.6,0.55]
[1724790963494,0.31916504,2591.7,2591.6,2.99856927]
[1724790963699,3.0,2592.3,2591.8,3.85823]
[1724790963905,8.85699,2592.7,2591.9,2.99855256]
[1724790964121,0.31879387,2592.2,2592.0,0.68567826]
[1724790964385,8.85699,2592.7,2592.1,0.55]
[1724790964994,8.85699,2592.7,2592.0,0.55]
[1724790965193,3.85715,2592.6,2592.0,0.55]
[1724790965395,3.0,2592.5,2592.0,0.84985526]
[1724790967901,6.85731,2592.5,2592.0,0.84985526]
[1724790968100,3.85766,2592.3,2592.0,0.55]
[1724790968301,3.0,2592.2,2592.0,0.55]
[1724790968609,7.17668412,2592.2,2591.8,0.55]
[1724790968817,4.17668412,2592.2,2591.8,0.55]
[1724790970728,0.31894412,2592.2,2591.8,0.55]
[1724790971101,6.85758,2592.3,2591.8,0.55]
[1724790971330,0.31894412,2592.1,2591.8,0.55]
[1724790971487,6.85758,2592.3,2591.8,0.55]
[1724790971683,0.31894412,2592.0,2591.8,0.55]
[1724790971889,6.85758,2592.3,2591.8,0.55]
[1724790972195,3.85772,2592.2,2591.8,0.55]
[1724790972512,0.31894412,2592.1,2591.8,0.55]
[1724790973512,4.17681412,2592.1,2591.8,0.55]
[1724790973838,4.17681412,2592.1,2591.5,2.3707]
[1724790973839,6.85811,2592.0,2591.5,2.3707]
[1724790974128,7.17713369,2592.0,2591.5,2.3707]
[1724790975594,7.17713369,2592.0,2591.6,0.55]
[1724790981763,3.31902369,2592.0,2591.6,0.55]
[1724790993177,7.17705369,2592.0,2591.6,0.55]
[1724790993530,7.17705369,2592.0,2591.7,0.55]
[1724790993730,7.17705369,2592.0,2591.5,0.55]
[1724790995432,3.31902369,2592.0,2591.5,0.55]
[1724791003371,3.85829,2591.9,2591.5,0.55]
[1724791003578,2.4015,2591.8,2591.5,0.55]
[1724791003735,2.72001987,2591.8,2591.5,0.55]
[1724791004739,0.31851987,2591.8,2591.5,0.55]
[1724791004941,0.31851987,2591.8,2591.5,3.8244]
[1724791005213,3.0,2592.0,2591.5,3.8244]
[1724791005489,3.0,2592.0,2591.5,3.0424]
[1724791005780,0.31850219,2591.9,2591.5,3.0424]
[1724791006150,0.31850219,2591.9,2591.6,1.75217035]
[1724791006351,3.31850219,2591.9,2591.7,0.55]
[1724791006538,0.31850219,2591.9,2591.7,0.55]
[1724791006960,3.0,2592.2,2591.7,0.55]
[1724791007170,2.4014,2592.3,2591.7,0.55]
[1724791007171,0.31850219,2591.8,2591.7,0.55]
[1724791007441,0.31850219,2591.8,2591.7,1.02173995]
[1724791007841,3.0,2592.2,2591.7,1.02173995]
[1724791008054,0.31850219,2591.8,2591.7,0.55]
[1724791008280,3.0,2592.2,2591.7,0.55]
[1724791008486,0.31850219,2591.8,2591.7,0.55]
[1724791008684,3.0,2592.2,2591.7,0.55]
[1724791008840,0.31850219,2591.8,2591.7,0.55]
[1724791009251,3.0,2592.2,2591.6,0.55]
[1724791009560,0.31850219,2591.8,2591.6,0.55]
[1724791009760,3.0,2592.2,2591.6,1.74873995]
[1724791009965,0.31850219,2591.7,2591.6,1.74873995]
[1724791010161,6.85772,2592.2,2591.6,1.74873995]
[1724791010346,0.31850219,2591.7,2591.6,1.74873995]
[1724791010552,6.85772,2592.2,2591.6,1.74873995]
[1724791010855,6.85772,2592.2,2591.6,0.55]
[1724791011045,0.31850219,2592.1,2591.6,0.55]
[1724791015062,0.31850219,2592.1,2592.0,1.6749995]
[1724791015295,2.0,2592.7,2592.0,4.5615995]
[1724791015296,6.29389,2592.7,2592.0,4.5615995]
[1724791015505,2.4369,2593.2,2592.6,1.6749995]
[1724791015726,6.29324,2593.2,2592.6,1.6749995]
[1724791015857,2.4369,2593.2,2592.7,0.55]
[1724791016255,6.2932,2593.2,2592.7,0.55]
[1724791016519,3.85646,2593.1,2592.7,0.55]
[1724791016682,3.85683,2592.8,2592.7,0.55]
[1724791016887,2.4248,2592.7,2592.5,0.55]
[1724791018113,2.4248,2592.7,2592.4,7.27]
[1724791018114,3.85713,2592.6,2592.4,7.27]
[1724791018319,4.485293,2592.6,2591.9,7.27]
[1724791018626,3.85713,2592.6,2592.0,0.55]
[1724791019072,5.4248,2592.7,2592.0,0.55]
[1724791025691,3.0,2592.7,2592.1,2.37]
[1724791025891,3.0,2592.8,2592.2,0.62714898]
[1724791026224,5.2748,2593.0,2592.4,2.37]
[1724791026418,3.0,2593.0,2592.5,0.55]
[1724791026600,6.13105,2593.2,2592.5,1.63001151]
[1724791026804,3.0,2593.1,2592.5,0.55]
[1724791028611,0.30898527,2593.0,2592.5,0.55]
[1724791031017,0.30898527,2593.0,2592.5,4.57265506]
[1724791031320,0.30898527,2593.0,2592.5,0.55]
[1724791031539,3.0,2593.2,2592.5,0.55]
[1724791031685,0.30915392,2592.9,2592.6,0.29971356]
[1724791031985,3.0,2593.2,2592.7,0.55]
[1724791032184,0.30915392,2592.8,2592.7,0.55]
[1724791032424,3.0,2593.2,2592.7,0.55]
[1724791032631,0.30915392,2592.8,2592.7,0.55]
[1724791033129,3.0,2593.2,2592.7,0.55]
[1724791033296,0.30915392,2592.8,2592.7,0.55]
[1724791033496,3.0,2593.2,2592.7,0.55]
[1724791033726,0.30915392,2592.8,2592.7,0.55]
[1724791033885,3.0,2593.2,2592.7,0.55]
[1724791034092,3.0,2593.4,2592.8,2.34273051]
[1724791034387,5.0,2593.5,2592.9,1.24153856]
[1724791036286,3.85492,2594.1,2593.1,3.85638]
[1724791036287,2.4112,2593.9,2593.1,3.85638]
[1724791036490,8.2661,2594.1,2593.3,2.4752]
[1724791036728,8.2661,2594.1,2593.4,1.238143]
[1724791036889,8.66990902,2594.1,2593.4,0.55]
[1724791037522,3.85507,2594.0,2593.4,0.55]
[1724791037886,3.0,2593.9,2593.4,0.55]
[1724791038704,6.85519,2593.9,2593.4,0.55]
[1724791039133,3.0,2593.9,2593.4,0.55]
[1724791040725,6.8552,2593.9,2593.4,0.55]
[1724791043625,0.31010347,2593.8,2593.4,0.55]
[1724791044488,0.31010347,2593.8,2593.4,0.85252]
[1724791051122,0.31010347,2593.8,2593.5,2.3944]
[1724791051300,0.31010347,2593.8,2593.6,0.55]
[1724791065149,2.3568,2593.7,2593.6,0.55]
[1724791065325,9.52288154,2593.7,2593.2,2.3039]
[1724791065713,9.52189561,2593.7,2593.2,2.3039]
[1724791066352,3.85588,2593.5,2592.8,2.4738]
[1724791066735,3.85588,2593.5,2592.4,1.67430331]
[1724791066736,3.85628,2593.2,2592.6,2.4738]
[1724791066921,3.31129208,2593.4,2592.6,2.4738]
[1724791066922,6.85639,2593.1,2592.6,2.4738]
[1724791067257,3.85631,2593.2,2592.6,2.4738]
[1724791067459,0.31129208,2593.0,2592.6,2.4738]
[1724791067633,3.0,2593.1,2592.6,2.4738]
[1724791067840,0.31129208,2592.9,2592.6,2.4738]
[1724791068012,3.0,2593.1,2592.7,0.55]
[1724791068212,0.31129208,2592.8,2592.7,0.55]
[1724791068710,3.0,2593.1,2592.7,0.55]
[1724791068916,5.3568,2593.2,2592.7,0.55]
[1724791069150,0.31129208,2593.0,2592.7,0.55]
[1724791069453,3.0,2593.1,2592.7,0.55]
[1724791069623,0.31129208,2592.9,2592.7,1.13399136]
[1724791069831,3.0,2593.1,2592.7,0.55]
[1724791070315,0.31129208,2593.0,2592.7,0.55]
[1724791070822,3.0,2593.1,2592.7,0.55]
[1724791071027,0.31129208,2592.9,2592.7,0.55]
[1724791071212,3.0,2593.1,2592.7,0.96656103]
[1724791071412,0.31129208,2592.8,2592.7,0.96656103]
[1724791071608,3.0,2593.1,2592.7,0.96656103]
[1724791071916,9.21307,2593.2,2592.7,0.55]
[1724791072112,0.31129208,2593.0,2592.7,0.55]
[1724791072313,3.0,2593.1,2592.7,0.55]
[1724791072619,0.31129208,2592.9,2592.7,0.55]
[1724791072956,0.31129208,2592.8,2592.7,1.13399136]
[1724791073165,3.0,2593.1,2592.7,0.55]
[1724791073318,0.31129208,2592.8,2592.7,0.55]
[1724791073520,3.0,2593.1,2592.7,0.55]
[1724791073827,0.31129208,2592.8,2592.7,0.55]
[1724791074029,3.0,2593.1,2592.7,0.55]
[1724791074212,0.31129208,2592.8,2592.7,0.55]
[1724791074412,3.0,2593.1,2592.7,0.55]
[1724791074630,0.31129208,2592.8,2592.7,0.55]
[1724791074845,3.0,2593.1,2592.7,0.55]
[1724791075065,0.31129208,2592.8,2592.7,0.55]
[1724791075215,3.0,2593.1,2592.7,0.55]
[1724791075417,0.31129208,2592.8,2592.7,0.55]
[1724791075919,3.0,2593.1,2592.7,0.55]
[1724791076226,0.31129208,2592.8,2592.7,0.55]
[1724791076573,0.31129208,2592.8,2592.7,1.13399136]
[1724791076744,3.0,2593.2,2592.7,1.13399136]
[1724791076939,0.31129208,2592.8,2592.7,1.13399136]
[1724791077236,3.0,2593.2,2592.7,2.80829467]
[1724791077442,0.31129208,2592.8,2592.7,2.80829467]
[1724791077630,3.0,2593.2,2592.7,2.80829467]
[1724791077832,0.31129208,2592.8,2592.7,2.80829467]
[1724791078033,3.0,2593.2,2592.8,2.3146]
[1724791078237,3.0,2593.6,2593.2,2.3146]
[1724791078544,3.0,2593.6,2593.3,0.55]
[1724791078545,6.85565,2593.6,2593.3,0.55]
[1724791081449,3.85579,2593.5,2593.3,0.55]
[1724791081645,3.0,2593.4,2593.3,0.55]
[1724791083377,3.0,2593.4,2593.1,0.55]
[1724791086845,3.0,2593.4,2593.1,2.22430331]
[1724791087175,3.0,2593.4,2593.3,2.2986]
[1724791087354,3.0,2593.5,2593.3,2.8486]
[1724791087551,3.0,2593.5,2593.4,0.55]
[1724791088172,6.85579,2593.5,2593.4,0.55]
[1724791088372,7.1661951,2593.5,2593.2,0.55]
[1724791090556,2.4054,2593.4,2592.9,7.27]
[1724791090756,3.3104051,2593.5,2592.9,7.27]
[1724791090757,3.85653,2593.0,2592.9,7.27]
[1724791091073,3.85683,2592.8,2592.0,2.3318]
[1724791091256,3.0,2593.0,2592.1,0.96018]
[1724791091257,3.85728,2592.5,2592.1,0.96018]
[1724791091462,3.85745,2592.4,2591.7,2.3318]
[1724791091685,0.31075994,2592.4,2591.7,2.3318]
[1724791091870,0.31075994,2592.4,2591.8,1.67430331]
[1724791092072,6.85729,2592.5,2591.7,2.3318]
[1724791092312,0.3103696,2592.3,2591.8,0.23318]
[1724791092495,3.85743,2592.4,2591.8,0.23318]
[1724791092668,6.5735296,2592.2,2591.3,2.3318]
[1724791093015,3.3103696,2592.1,2591.3,2.3318]
[1724791094686,3.3103696,2592.1,2591.3,6.19084]
[1724791095006,3.3103696,2592.1,2591.4,1.44600364]
[1724791095187,3.3103696,2592.1,2591.5,0.55]
[1724791097316,0.3103696,2592.1,2591.5,0.55]
[1724791097688,3.0,2592.3,2591.5,0.55]
[1724791097877,0.3103696,2592.0,2591.5,0.55]
[1724791098078,3.0,2592.3,2591.6,0.987795]
[1724791098323,3.0,2592.3,2591.7,0.55]
[1724791098324,0.3103696,2591.9,2591.7,0.55]
[1724791098624,0.3103696,2591.8,2591.7,0.55]
[1724791098912,3.0,2592.3,2591.7,0.55]
[1724791099124,0.3103696,2591.8,2591.7,0.55]
[1724791099313,3.0,2592.3,2591.7,0.55]
[1724791099513,0.3103696,2591.8,2591.7,0.55]
[1724791099720,3.0,2592.3,2591.7,0.55]
[1724791100227,0.3103696,2592.2,2591.7,0.55]
[1724791110015,0.3103696,2592.2,2591.7,2.8168]
[1724791110214,0.3103696,2592.2,2591.8,0.3804595]
[1724791110409,3.0,2592.3,2591.9,0.55]
[1724791110813,0.30847035,2592.2,2591.9,0.55]
[1724791111012,3.0,2592.3,2591.9,0.62716224]
[1724791111334,0.30847035,2592.2,2591.9,0.55]
[1724791111700,3.0,2592.5,2591.9,0.55]
[1724791111898,0.3085325,2592.1,2591.9,0.55]
[1724791112119,3.0,2592.5,2591.9,2.22607826]
[1724791112340,3.0,2592.5,2592.0,0.26065378]
[1724791112535,3.0,2592.5,2592.1,0.55]
[1724791113204,6.85728,2592.5,2592.1,0.55]
[1724791116713,3.0,2592.5,2592.1,3.0099]
[1724791116917,5.4422,2592.6,2592.1,3.0099]
[1724791117498,9.2994,2592.6,2592.1,3.0099]
[1724791118315,3.85729,2592.5,2592.1,3.0099]
[1724791118518,3.0,2592.4,2592.1,0.55]
[1724791119030,0.30887873,2592.3,2592.1,0.55]
[1724791119241,0.30887873,2592.3,2592.0,0.55]
[1724791120311,4.16645873,2592.3,2592.0,0.55]
[1724791120733,4.16645873,2592.3,2591.9,0.55]
[1724791122342,0.30887873,2592.3,2591.9,0.55]
[1724791122548,0.30887873,2592.3,2591.9,1.76966378]
[1724791126102,0.30887873,2592.3,2591.9,0.55]
[1724791126551,4.16646873,2592.3,2591.9,0.55]
[1724791126932,2.3331,2592.2,2591.9,0.55]
[1724791127338,0.30875447,2592.1,2591.9,0.55]
[1724791127948,3.30875447,2592.1,2591.9,0.55]
[1724791132931,7.16663447,2592.1,2591.9,0.55]
[1724791133868,2.3775,2592.0,2591.3,2.482]
[1724791134017,3.8583,2591.9,2591.3,4.15807826]
[1724791134377,0.30843483,2591.8,2591.3,4.15807826]
[1724791134515,0.30843483,2591.8,2591.5,2.482]
[1724791134955,10.71594,2592.1,2591.5,2.482]
[1724791135257,6.85797,2592.1,2591.5,2.482]
[1724791135456,0.3081152,2592.0,2591.5,2.482]